bitfinex/quotes_ETHUSD_20251110
["timestamp","ask_amount","ask_price","bid_price","bid_amount"]
[1762797782067,4.28125605,3551.3,3549.6,0.4566]
[1762797782068,4.28125605,3551.3,3549.7,0.02817139]
[1762797782383,0.01,3551.9,3551.2,0.6203]
[1762797782521,0.01,3551.9,3551.2,0.1693]
[1762797782522,0.02817948,3551.8,3551.2,0.1693]
[1762797782831,0.02817948,3551.8,3550.0,0.1693]
[1762797782832,0.4679,3551.7,3550.3,0.4566]
[1762797783020,1.259712,3551.6,3550.3,0.4566]
[1762797783222,2.81569978,3551.6,3550.3,0.4566]
[1762797783447,4.47425605,3551.9,3550.3,0.4566]
[1762797783652,0.01,3551.9,3550.3,0.4566]
[1762797783851,0.01,3551.9,3551.8,0.451]
[1762797784051,0.01,3551.9,3551.8,0.6203]
[1762797784754,0.01,3551.9,3551.5,0.1693]
[1762797785142,0.01,3551.9,3551.8,0.451]
[1762797785336,1.259712,3551.8,3551.5,0.1693]
[1762797785661,1.259712,3551.8,3551.1,0.1693]
[1762797785662,2.81547384,3551.8,3551.1,0.1693]
[1762797785847,0.01,3551.9,3551.1,0.1693]
[1762797786051,2.81547384,3551.8,3551.1,0.1693]
[1762797787060,1.259712,3551.8,3551.1,0.6259]
[1762797787261,2.81547979,3551.8,3551.1,0.6259]
[1762797787461,2.81555209,3551.8,3551.1,0.6259]
[1762797787666,1.259712,3551.8,3551.1,0.6259]
[1762797787843,2.8157633,3551.5,3551.1,0.1693]
[1762797788038,3.0084208,3551.9,3551.1,0.1693]
[1762797788378,0.01,3551.9,3551.1,0.6259]
[1762797788531,0.01,3551.9,3551.8,0.451]
[1762797788730,2.82546717,3551.9,3551.2,0.4566]
[1762797788931,0.01,3551.9,3551.2,0.4566]
[1762797789175,0.01,3551.9,3551.8,0.451]
[1762797789481,0.01,3551.9,3551.2,0.4566]
[1762797789482,2.81552255,3551.8,3551.2,0.4566]
[1762797789628,0.02817948,3551.7,3551.2,0.4566]
[1762797789963,2.81568439,3551.6,3551.1,0.1693]
[1762797790267,0.01,3551.9,3551.8,0.451]
[1762797791567,2.82541821,3551.9,3551.1,0.1693]
[1762797791744,2.84365498,3551.8,3551.1,0.1693]
[1762797792153,0.02817948,3551.8,3551.1,0.1693]
[1762797792462,2.82539898,3551.9,3551.1,0.6259]
[1762797792663,0.01,3551.9,3551.2,0.4566]
[1762797792865,0.01,3551.9,3551.8,0.451]
[1762797794238,2.81552503,3551.8,3551.1,0.1693]
[1762797794439,2.82540795,3551.9,3551.1,0.1693]
[1762797794763,2.81548595,3551.8,3551.1,0.1693]
[1762797794961,2.85364004,3551.9,3551.1,0.6259]
[1762797795270,0.01,3551.9,3551.1,0.1693]
[1762797795575,0.01,3551.9,3551.8,0.451]
[1762797796666,0.01,3551.9,3551.2,0.4566]
[1762797796831,0.01,3551.9,3551.8,0.451]
[1762797797036,0.01,3551.9,3551.2,0.4566]
[1762797797369,0.01,3551.9,3551.8,0.451]
[1762797798043,0.01,3551.9,3551.1,0.6259]
[1762797798245,0.01,3551.9,3551.1,0.1693]
[1762797798246,2.81568653,3551.6,3551.1,0.1693]
[1762797798476,2.81547384,3551.8,3551.1,0.1693]
[1762797798685,1.920612,3551.9,3551.1,0.1693]
[1762797798686,1.94879148,3551.9,3551.1,0.1693]
[1762797798975,2.81609945,3551.1,3550.4,0.4566]
[1762797799150,1.259712,3551.6,3550.4,0.4566]
[1762797799350,1.727612,3551.6,3550.4,0.4566]
[1762797799551,2.81623978,3550.9,3550.3,0.00611922]
[1762797799755,0.02817948,3550.8,3550.3,2.24741104]
[1762797799979,4.07557243,3551.4,3550.3,2.24741104]
[1762797799980,2.81636486,3550.7,3550.3,2.24741104]
[1762797800343,0.6609,3551.9,3550.6,0.451]
[1762797800594,0.6609,3551.9,3550.4,0.4566]
[1762797800595,2.81591698,3551.3,3550.7,0.451]
[1762797800763,1.259712,3551.2,3550.7,0.451]
[1762797800960,0.193,3551.9,3550.8,0.4566]
[1762797801305,0.193,3551.9,3550.3,0.00611922]
[1762797801306,1.259712,3551.5,3550.3,0.00611922]
[1762797801593,4.28125605,3551.6,3550.4,0.4566]
[1762797801594,2.81603408,3551.1,3550.4,0.4566]
[1762797801891,1.259712,3551.3,3550.3,0.46271922]
[1762797802087,2.81609358,3551.1,3550.3,0.46271922]
[1762797802250,1.259712,3550.9,3550.3,0.46271922]
[1762797802453,1.259712,3550.9,3550.4,2.7468377]
[1762797802884,4.07581099,3551.1,3550.4,3.2034377]
[1762797803090,1.259712,3550.9,3550.4,3.2034377]
[1762797803397,2.81611616,3551.0,3550.4,3.2034377]
[1762797803754,2.81604442,3551.1,3550.4,3.2034377]
[1762797803952,0.4679,3551.5,3550.3,0.00611922]
[1762797803953,1.259712,3551.2,3550.3,0.00611922]
[1762797804253,2.81651083,3550.5,3550.3,0.00611922]
[1762797804694,2.81644981,3550.6,3550.3,0.00611922]
[1762797804856,2.81650783,3550.5,3550.3,0.00611922]
[1762797805196,4.55249604,3550.4,3550.3,0.00611922]
[1762797805352,5.45800004,3550.4,3550.3,0.00611922]
[1762797806219,5.05249604,3550.4,3550.3,0.00611922]
[1762797806381,4.55249604,3550.4,3550.3,0.00611922]
[1762797808723,5.05249604,3550.4,3550.3,0.00611922]
[1762797809129,1.259712,3550.4,3550.3,0.00611922]
[1762797809285,4.07629604,3550.4,3550.3,0.00611922]
[1762797809605,1.259712,3550.4,3550.3,0.00611922]
[1762797810205,4.07629604,3550.4,3550.3,0.00611922]
[1762797810522,4.07612598,3550.7,3550.3,3.71785692]
[1762797810826,4.28125605,3551.4,3550.3,3.23485692]
[1762797810827,0.5,3551.2,3550.3,3.23485692]
[1762797810998,4.07559308,3551.3,3550.6,0.4819]
[1762797811187,1.259712,3550.9,3550.6,0.4819]
[1762797811516,2.81619211,3550.9,3550.6,0.4819]
[1762797811716,1.259712,3550.8,3550.6,0.4819]
[1762797811939,2.81603666,3551.1,3550.6,0.4819]
[1762797811940,2.81609955,3551.1,3550.8,0.4819]
[1762797812231,0.1843,3551.8,3551.0,0.4819]
[1762797812525,4.29125605,3551.9,3550.6,0.37178569]
[1762797812526,2.81595432,3551.2,3550.6,0.37178569]
[1762797812839,4.28125605,3551.4,3550.6,0.37178569]
[1762797812840,1.259712,3551.4,3550.6,0.37178569]
[1762797812987,0.5,3551.7,3550.6,0.85478569]
[1762797813546,0.1943,3551.9,3550.7,0.483]
[1762797813719,1.259712,3551.6,3550.7,0.483]
[1762797813891,2.81564953,3551.6,3550.7,0.483]
[1762797814091,1.259712,3551.6,3550.7,0.483]
[1762797814287,0.001,3551.8,3550.6,0.37178569]
[1762797814288,2.81593293,3551.3,3550.6,0.37178569]
[1762797814512,0.001,3551.8,3551.7,0.6512]
[1762797816828,0.001,3551.8,3551.4,0.1693]
[1762797817188,0.001,3551.8,3551.1,0.1693]
[1762797817605,2.81561286,3551.7,3551.1,0.1693]
[1762797818009,2.81650688,3551.8,3551.1,0.1693]
[1762797818251,0.001,3551.8,3551.2,0.483]
[1762797818418,0.001,3551.8,3551.7,0.4819]
[1762797818811,0.001,3551.8,3551.7,0.9649]
[1762797819014,0.001,3551.8,3551.7,0.4819]
[1762797820541,0.001,3551.8,3551.1,0.1693]
[1762797820542,2.81647384,3551.8,3551.1,0.1693]
[1762797821070,0.001,3551.8,3551.1,0.6523]
[1762797821522,0.001,3551.8,3551.2,0.483]
[1762797822124,2.81648237,3551.8,3551.2,0.483]
[1762797822452,0.001,3551.8,3551.2,0.483]
[1762797822611,0.001,3551.8,3551.1,0.1693]
[1762797822612,1.259712,3551.7,3551.1,0.1693]
[1762797822810,1.259712,3551.7,3550.7,14.983]
[1762797822811,0.4762,3551.2,3550.3,2.75495692]
[1762797823011,0.02817948,3551.1,3550.3,2.75495692]
[1762797823208,1.259712,3551.0,3550.3,2.75495692]
[1762797823412,1.259712,3551.1,3550.4,0.483]
[1762797823714,2.81605907,3551.1,3550.5,2.7468377]
[1762797823914,2.81619055,3550.9,3550.5,2.7468377]
[1762797824157,1.259712,3551.0,3550.5,2.7468377]
[1762797824444,2.81611389,3551.0,3550.5,2.7468377]
[1762797824651,2.81620035,3550.9,3550.5,2.7468377]
[1762797825262,2.81588706,3551.3,3550.5,2.7468377]
[1762797825455,2.81588706,3551.3,3550.3,2.75495692]
[1762797825456,0.52817948,3551.2,3550.3,2.75495692]
[1762797825763,2.81641027,3550.7,3550.3,2.75495692]
[1762797825981,0.5,3551.2,3550.3,2.75495692]
[1762797826142,0.1843,3550.9,3550.3,0.00811922]
[1762797826327,0.5,3551.2,3550.3,0.00811922]
[1762797826669,2.81642785,3550.6,3550.3,0.00811922]
[1762797827170,1.259712,3551.3,3550.5,0.4819]
[1762797827374,3.31600731,3551.2,3550.3,0.00811922]
[1762797827531,0.5,3551.2,3550.3,0.00811922]
[1762797827732,2.81630304,3550.8,3550.3,0.00811922]
[1762797827932,2.81635217,3550.7,3550.3,0.00811922]
[1762797828265,0.5,3551.2,3550.3,0.00811922]
[1762797828266,2.81648111,3550.6,3550.3,0.00811922]
[1762797829371,2.81627162,3550.8,3550.3,0.00811922]
[1762797829569,2.81627162,3550.8,3550.4,1.47130258]
[1762797829784,1.259712,3551.1,3550.7,0.4819]
[1762797829935,2.81626675,3550.8,3550.7,0.4819]
[1762797831061,1.259712,3551.1,3550.7,0.9649]
[1762797831241,1.760712,3551.8,3550.3,0.00811922]
[1762797831242,0.6605,3550.8,3550.3,0.00811922]
[1762797831455,2.81643166,3550.6,3550.3,0.00811922]
[1762797831656,2.81636258,3550.7,3550.3,0.00811922]
[1762797832354,3.00057804,3550.8,3550.3,0.00811922]
[1762797832559,2.81634607,3550.7,3550.3,0.00811922]
[1762797832761,2.81634607,3550.7,3550.3,2.75495692]
[1762797833082,2.81643706,3550.6,3550.3,2.75495692]
[1762797833760,0.6843,3550.8,3550.3,2.75495692]
[1762797835292,2.81644989,3550.6,3550.3,2.75495692]
[1762797835649,3.50057586,3550.8,3550.3,2.75495692]
[1762797835650,2.8163582,3550.7,3550.3,2.75495692]
[1762797835851,0.4503,3551.6,3550.7,0.477]
[1762797836147,0.4503,3551.6,3550.4,3.23710354]
[1762797836148,2.81617992,3551.0,3550.4,3.2089377]
[1762797836365,1.710012,3551.6,3550.4,2.7468377]
[1762797836366,2.81627022,3550.8,3550.4,2.7468377]
[1762797836984,0.4503,3551.3,3550.7,0.477]
[1762797837150,2.81615918,3551.0,3550.7,0.477]
[1762797837350,2.81619044,3550.9,3550.7,0.477]
[1762797837559,0.4503,3551.3,3550.4,2.7468377]
[1762797837560,2.81638959,3550.7,3550.4,2.7468377]
[1762797837762,2.81649768,3550.6,3550.3,0.00811922]
[1762797837950,3.30547032,3550.8,3550.3,0.00811922]
[1762797837951,2.81627032,3550.8,3550.3,0.00811922]
[1762797838280,2.81644716,3550.6,3550.3,0.00811922]
[1762797838452,1.259712,3551.3,3550.3,0.47021922]
[1762797838647,2.81635369,3550.7,3550.5,0.477]
[1762797839163,2.81631438,3550.8,3550.6,0.477]
[1762797839364,0.4503,3551.2,3550.3,0.00811922]
[1762797839683,2.81631647,3550.8,3550.4,2.7468377]
[1762797839896,2.81635063,3550.7,3550.4,2.7468377]
[1762797840202,0.4503,3551.2,3550.4,2.7468377]
[1762797840409,0.4503,3551.2,3550.6,0.477]
[1762797840410,2.81616199,3551.0,3550.6,0.477]
[1762797840904,2.81604195,3551.1,3550.9,0.0791]
[1762797841068,2.81610813,3551.0,3550.9,0.0791]
[1762797841764,0.9395,3551.0,3550.3,0.00811922]
[1762797842017,0.9395,3551.0,3550.4,2.7468377]
[1762797842018,2.816311,3550.8,3550.4,2.7468377]
[1762797842316,3.30578404,3550.4,3550.3,0.00811922]
[1762797842478,5.01579604,3550.4,3550.3,0.00811922]
[1762797842666,9.93010882,3550.4,3550.3,0.00811922]
[1762797842869,9.93010882,3550.4,3550.3,1e-08]
[1762797843093,10.27233033,3550.4,3550.3,1e-08]
[1762797843625,5.26707938,3550.3,3550.2,744.01912755]
[1762797843795,5.60930089,3550.3,3550.2,635.4644764]
[1762797843967,5.60930089,3550.3,3550.2,264.76215841]
[1762797844727,6.59871436,3550.3,3550.2,258.48971115]
[1762797844918,5.60930089,3550.3,3550.2,256.72424155]
[1762797845417,6.61794483,3550.3,3550.2,256.72424155]
[1762797845720,6.61794483,3550.3,3550.2,250.45179429]
[1762797846022,6.61794483,3550.3,3550.2,248.68632469]
[1762797846323,5.60930089,3550.3,3550.2,248.68632469]
[1762797846683,5.60930089,3550.3,3550.2,242.41387743]
[1762797846684,6.61794483,3550.3,3550.2,242.41387743]
[1762797846879,2.79263751,3550.3,3550.2,240.64840783]
[1762797847433,3.80065832,3550.3,3550.2,240.64840783]
[1762797847633,3.80065832,3550.3,3550.2,236.14143017]
[1762797847950,2.79263751,3550.3,3550.2,234.37596057]
[1762797848647,2.38713351,3550.3,3550.2,229.86898291]
[1762797848930,5.29400878,3550.3,3550.2,229.86898291]
[1762797849120,6.95922478,3550.3,3550.2,229.86898291]
[1762797849898,5.29400878,3550.3,3550.2,229.86898291]
[1762797850096,0.3349,3550.3,3550.2,229.86898291]
[1762797850548,0.7852,3550.3,3550.2,229.86898291]
[1762797851123,4.50880878,3550.7,3550.2,229.86898291]
[1762797851528,4.50880878,3551.2,3550.2,229.86898291]
[1762797851803,4.50880878,3551.2,3550.2,230.33108291]
[1762797851999,4.50880878,3551.2,3550.2,233.07792061]
[1762797852199,0.47847948,3551.1,3550.2,229.86898291]
[1762797852402,0.4503,3551.1,3550.2,229.86898291]
[1762797852612,0.02817948,3551.0,3550.2,229.86898291]
[1762797853020,0.4892,3550.3,3550.2,229.86898291]
[1762797853658,0.405504,3550.8,3550.2,229.86898291]
[1762797853944,0.855804,3550.8,3550.2,229.86898291]
[1762797854155,0.1935,3550.9,3550.2,232.61582061]
[1762797854452,1.259712,3551.1,3550.2,232.61582061]
[1762797854651,4.50880878,3551.7,3550.3,0.4621]
[1762797854854,1.259712,3551.6,3550.3,0.4621]
[1762797855198,4.95910878,3551.7,3550.3,0.4621]
[1762797855199,4.50880878,3551.7,3550.3,0.4621]
[1762797855398,0.001,3551.8,3550.4,2.7468377]
[1762797855839,0.4513,3551.8,3550.5,0.4621]
[1762797860631,0.02817948,3551.7,3550.5,0.4621]
[1762797860842,0.02817948,3551.7,3550.4,2.7468377]
[1762797861144,0.4513,3551.8,3550.5,0.4621]
[1762797861145,0.001,3551.8,3550.5,0.4621]
[1762797861347,0.001,3551.8,3550.6,0.32089377]
[1762797861710,0.001,3551.8,3550.7,0.4621]
[1762797862507,0.4503,3551.7,3550.7,0.4621]
[1762797862908,0.39906621,3551.7,3550.7,0.4621]
[1762797863153,0.001,3552.6,3551.8,0.477]
[1762797863311,0.001,3553.7,3552.8,0.477]
[1762797863510,0.001,3553.7,3553.6,0.6353]
[1762797863916,0.001,3553.7,3553.6,1.12554047]
[1762797864239,0.001,3553.7,3553.2,14.9621]
[1762797864440,0.001,3553.7,3552.3,6.51659239]
[1762797864441,0.001,3553.7,3552.3,4.50880878]
[1762797864740,0.001,3553.7,3553.1,0.1957]
[1762797865330,0.001,3553.7,3553.6,0.4639]
[1762797865743,0.001,3553.7,3553.6,0.9413]
[1762797867547,0.001,3553.7,3553.6,0.4639]
[1762797867723,0.001,3553.7,3553.2,0.4774]
[1762797868053,0.4884,3553.7,3552.7,14.9774]
[1762797868351,0.4884,3553.7,3552.7,14.5]
[1762797869044,0.02817948,3553.6,3552.6,0.1895]
[1762797869424,0.66660203,3553.5,3552.6,0.1895]
[1762797869623,0.66660203,3553.5,3551.8,4.50880878]
[1762797869624,0.3633,3552.7,3551.9,0.4774]
[1762797869972,0.5585,3552.7,3551.9,0.4774]
[1762797870140,0.4844,3553.4,3551.9,0.4774]
[1762797870449,0.66660203,3553.3,3551.9,0.4774]
[1762797870953,0.4874,3553.2,3551.9,0.4774]
[1762797873213,0.001,3553.7,3553.1,0.6212]
[1762797873527,0.001,3553.7,3553.2,0.4639]
[1762797873761,0.001,3553.7,3552.7,0.1895]
[1762797873940,0.4884,3553.7,3552.7,0.1895]
[1762797874148,0.02817948,3553.6,3552.7,0.1895]
[1762797874348,0.4884,3553.7,3552.7,0.1895]
[1762797874606,0.51657948,3553.7,3552.7,0.1895]
[1762797876570,0.51657948,3553.7,3552.8,0.50554681]
[1762797876571,0.001,3553.7,3552.8,0.50554681]
[1762797876756,0.001,3553.7,3552.8,0.4774]
[1762797877061,0.001,3553.7,3552.9,0.4774]
[1762797877868,0.001,3553.7,3552.9,14.9774]
[1762797878182,0.001,3553.7,3553.0,0.02814522]
[1762797878377,0.001,3553.7,3553.0,0.50554522]
[1762797878788,0.001,3553.7,3552.8,14.5]
[1762797878971,0.001,3553.7,3552.8,16.44635]
[1762797879288,0.001,3553.7,3552.9,0.4774]
[1762797879497,0.001,3553.7,3553.6,0.4639]
[1762797880365,0.001,3553.7,3553.2,0.4774]
[1762797880679,0.001,3553.7,3553.0,3.86]
[1762797880859,0.001,3553.7,3553.2,0.4774]
[1762797882572,0.001,3553.7,3553.6,0.4639]
[1762797883466,0.001,3553.7,3553.6,0.9413]
[1762797883666,0.001,3553.7,3553.3,3.86]
[1762797884472,0.001,3553.7,3553.3,18.8374]
[1762797884903,0.001,3553.7,3553.3,4.3374]
[1762797885209,0.001,3553.7,3553.6,4.97270878]
[1762797885510,1.64553566,3553.4,3552.9,0.002]
[1762797885676,0.0036,3553.0,3552.9,0.002]
[1762797886079,0.896504,3553.0,3552.9,0.002]
[1762797886600,2.156216,3553.0,3552.9,0.002]
[1762797886774,4.97073893,3553.0,3552.9,0.002]
[1762797887169,4.99891841,3553.0,3552.9,0.002]
[1762797887487,5.68703907,3553.0,3552.9,0.002]
[1762797887661,4.97073893,3553.0,3552.9,0.002]
[1762797888767,4.99891841,3553.0,3552.9,0.002]
[1762797889172,5.68703907,3553.0,3552.9,0.002]
[1762797889387,5.65885959,3553.0,3552.9,0.002]
[1762797889587,5.31520337,3553.0,3552.9,0.002]
[1762797889781,5.34338285,3553.0,3552.9,0.002]
[1762797890113,6.09254559,3553.0,3552.9,0.001]
[1762797890285,6.06436611,3553.0,3552.9,0.001]
[1762797890602,5.31520337,3553.0,3552.9,0.001]
[1762797890810,5.34338285,3553.0,3552.9,0.001]
[1762797891909,4.99891841,3553.0,3552.9,0.001]
[1762797894511,5.68703907,3553.0,3552.9,0.001]
[1762797894697,7.17045991,3553.0,3552.9,0.001]
[1762797895415,7.16987096,3553.0,3552.9,0.001]
[1762797896303,5.65885959,3553.0,3552.9,0.001]
[1762797896596,5.65885959,3553.0,3552.1,0.002]
[1762797896597,2.6978011,3552.9,3552.1,0.002]
[1762797896797,1.665216,3552.5,3552.1,0.002]
[1762797897108,1.665216,3552.5,3551.1,0.01]
[1762797897109,1.665216,3552.1,3551.1,0.01]
[1762797897315,0.71630014,3552.4,3551.1,0.01]
[1762797897316,5.03226553,3551.2,3551.1,0.01]
[1762797897475,3.22216738,3550.3,3550.1,0.012]
[1762797897678,4.97407938,3550.3,3550.1,0.012]
[1762797898409,2.157416,3550.3,3550.1,0.012]
[1762797899981,2.84553666,3550.3,3550.1,0.012]
[1762797902119,2.157416,3550.3,3550.1,0.012]
[1762797904805,0.84646649,3551.6,3550.2,230.34358291]
[1762797905004,0.6824,3551.2,3550.3,0.4746]
[1762797905586,0.405504,3551.1,3550.3,0.4746]
[1762797905939,0.405504,3551.1,3550.2,231.2296619]
[1762797905940,0.3528,3550.4,3550.2,229.86898291]
[1762797906081,2.82016338,3550.3,3550.2,229.86898291]
[1762797906286,4.48537938,3550.3,3550.2,229.86898291]
[1762797906591,4.96977938,3550.3,3550.2,229.86898291]
[1762797906898,5.65790004,3550.3,3550.2,229.86898291]
[1762797907119,4.96977938,3550.3,3550.2,229.86898291]
[1762797908388,2.153116,3550.3,3550.2,229.86898291]
[1762797908705,1.665216,3550.3,3550.2,229.86898291]
[1762797908918,1.259712,3550.3,3550.2,229.86898291]
[1762797909520,0.4844,3550.9,3550.2,230.34358291]
[1762797909838,0.198,3551.2,3550.2,230.34358291]
[1762797909987,0.6824,3551.2,3550.2,230.34358291]
[1762797910183,0.405504,3550.9,3550.2,230.34358291]
[1762797910441,1.665216,3550.8,3550.2,230.34358291]
[1762797910726,0.405504,3551.1,3550.2,230.34358291]
[1762797911024,1.259712,3551.0,3550.2,230.34358291]
[1762797911231,0.405504,3551.0,3550.2,232.75215929]
[1762797911811,0.55798079,3551.2,3550.3,0.4625]
[1762797912136,0.55798079,3551.2,3550.2,232.28965929]
[1762797912137,0.405504,3551.0,3550.2,232.28965929]
[1762797912309,3.22192131,3550.7,3550.2,230.34358291]
[1762797912511,2.81644776,3550.6,3550.2,230.34358291]
[1762797912712,0.405504,3550.7,3550.2,230.34358291]
[1762797912913,1.259712,3550.8,3550.2,230.34358291]
[1762797912914,0.405504,3550.8,3550.2,230.34358291]
[1762797913112,0.405504,3550.8,3550.2,230.80608291]
[1762797914509,0.405504,3550.8,3550.2,230.34358291]
[1762797916748,0.405504,3550.9,3550.2,230.34358291]
[1762797916964,1.665216,3550.9,3550.2,233.55292061]
[1762797918168,0.001,3551.1,3550.2,230.34358291]
[1762797918169,0.43468348,3551.1,3550.2,230.34358291]
[1762797918324,0.405504,3550.7,3550.2,230.34358291]
[1762797918657,0.405504,3550.7,3550.2,229.86898291]
[1762797918859,0.405504,3550.8,3550.2,229.86898291]
[1762797919252,2.148916,3550.3,3550.2,229.86898291]
[1762797919451,4.96557938,3550.3,3550.2,229.86898291]
[1762797919744,5.44997938,3550.3,3550.2,229.86898291]
[1762797920663,2.148916,3550.3,3550.2,229.86898291]
[1762797922737,1.665216,3550.3,3550.2,229.86898291]
[1762797922923,2.148916,3550.3,3550.2,229.86898291]
[1762797923119,2.633316,3550.3,3550.2,229.86898291]
[1762797923323,2.148916,3550.3,3550.2,229.86898291]
[1762797923543,1.665216,3550.3,3550.2,229.86898291]
[1762797923942,2.633316,3550.3,3550.2,229.86898291]
[1762797924154,3.73300117,3550.3,3550.2,229.86898291]
[1762797924331,3.98516199,3550.3,3550.2,229.86898291]
[1762797924957,3.42338433,3550.3,3550.2,229.86898291]
[1762797925122,6.38438433,3550.3,3550.2,229.86898291]
[1762797925324,8.8899836,3550.3,3550.2,222.09256804]
[1762797925553,6.86814411,3550.3,3550.2,222.09256804]
[1762797925859,6.86814411,3550.3,3550.2,217.44361957]
[1762797926440,9.68480749,3550.3,3550.2,159.70992877]
[1762797926824,9.20104771,3550.3,3550.2,137.60365387]
[1762797927026,9.68480749,3550.3,3550.2,133.79414967]
[1762797927369,9.20104771,3550.3,3550.2,133.79414967]
[1762797927668,12.21289386,3550.3,3550.2,124.45759563]
[1762797927819,12.21289386,3550.3,3550.2,124.08673821]
[1762797927820,9.68480749,3550.3,3550.2,124.08673821]
[1762797928023,13.48130881,3550.3,3550.2,124.08673821]
[1762797928258,16.00757292,3550.3,3550.2,124.08673821]
[1762797928866,15.56196903,3550.3,3550.2,124.08673821]
[1762797929027,13.03570492,3550.3,3550.2,124.08673821]
[1762797929227,13.48130881,3550.3,3550.2,124.08673821]
[1762797929629,14.32812414,3550.3,3550.2,124.08673821]
[1762797930461,16.34694737,3550.3,3550.2,124.08673821]
[1762797930685,13.48130881,3550.3,3550.2,124.08673821]
[1762797930884,5.04447538,3550.3,3550.2,124.08673821]
[1762797931188,4.55606515,3550.3,3550.2,124.08673821]
[1762797931397,7.3294201,3550.3,3550.2,124.08673821]
[1762797931568,7.77502399,3550.3,3550.2,124.08673821]
[1762797932588,6.26138104,3550.3,3550.2,124.08673821]
[1762797933914,5.81577715,3550.3,3550.2,124.08673821]
[1762797934082,6.26138104,3550.3,3550.2,124.08673821]
[1762797934487,7.77502399,3550.3,3550.2,124.08673821]
[1762797935415,7.3294201,3550.3,3550.2,124.08673821]
[1762797935967,4.95836061,3550.3,3550.2,124.08673821]
[1762797937309,4.51275672,3550.3,3550.2,124.08673821]
[1762797937487,2.99911377,3550.3,3550.2,124.08673821]
[1762797939105,3.44471766,3550.3,3550.2,124.08673821]
[1762797939905,2.99911377,3550.3,3550.2,124.08673821]
[1762797940592,1.51364295,3550.4,3550.2,124.54223821]
[1762797940593,1.00869329,3550.4,3550.2,124.54223821]
[1762797940914,0.75649211,3550.9,3550.3,0.4555]
[1762797941114,0.405504,3550.7,3550.5,0.4555]
[1762797941446,0.75649211,3550.8,3550.5,0.4555]
[1762797941825,0.405504,3550.7,3550.5,0.4555]
[1762797942131,0.75649211,3550.8,3550.5,0.4555]
[1762797942426,0.405504,3550.8,3550.5,0.4555]
[1762797942628,0.75649211,3550.9,3550.7,0.4555]
[1762797942811,0.001,3551.1,3550.8,0.4555]
[1762797943000,0.001,3551.1,3551.0,0.4555]
[1762797943693,0.001,3551.1,3551.0,0.911]
[1762797944094,0.001,3551.1,3550.2,124.08673821]
[1762797944095,0.4923,3551.1,3550.2,124.08673821]
[1762797944294,1.24879211,3551.1,3550.2,124.08673821]
[1762797944500,1.16199611,3550.9,3550.2,124.08673821]
[1762797944694,0.405504,3550.9,3550.3,0.4555]
[1762797944919,0.405504,3551.0,3550.8,0.4555]
[1762797945096,0.405504,3551.0,3550.9,0.4555]
[1762797945524,0.406504,3551.1,3550.9,0.4555]
[1762797946021,0.001,3551.1,3551.0,0.4555]
[1762797946222,0.001,3551.1,3551.0,0.911]
[1762797948056,0.001,3551.1,3551.0,0.4555]
[1762797951052,0.64822306,3551.6,3551.0,0.4555]
[1762797952554,0.64822306,3551.6,3550.2,124.08673821]
[1762797952763,0.64822306,3551.6,3550.5,0.4555]
[1762797952967,0.869504,3551.5,3550.2,124.08673821]
[1762797953269,0.405504,3551.5,3550.3,0.4555]
[1762797953856,0.869504,3551.5,3550.3,0.4555]
[1762797954178,0.34004777,3551.4,3550.3,0.4555]
[1762797954675,0.405504,3551.3,3550.3,0.4555]
[1762797954838,0.34004777,3551.2,3550.3,0.4555]
[1762797955039,0.405504,3551.1,3550.3,0.4555]
[1762797955238,0.34004777,3551.0,3550.3,0.4555]
[1762797955741,0.405504,3551.2,3550.3,0.4555]
[1762797955942,0.34004777,3551.1,3550.3,0.4555]
[1762797956174,0.405504,3551.2,3550.3,0.4555]
[1762797956355,0.34004777,3551.1,3550.3,0.4555]
[1762797956758,0.405504,3551.2,3551.0,0.4973]
[1762797956996,0.405504,3551.2,3550.9,0.1826]
[1762797957282,0.405504,3551.2,3551.1,0.4973]
[1762797958481,0.55817551,3551.5,3551.1,0.9704]
[1762797958667,0.96367951,3551.5,3551.4,0.4973]
[1762797960390,0.96367951,3551.5,3551.4,0.9704]
[1762797960391,0.55817551,3551.5,3551.4,0.9704]
[1762797960592,0.55817551,3551.5,3550.9,0.1826]
[1762797960593,1.02667551,3551.5,3550.9,0.1826]
[1762797960794,0.55817551,3551.5,3550.9,0.1826]
[1762797960990,0.55817551,3551.5,3550.9,0.6557]
[1762797961360,0.55817551,3551.5,3551.0,0.4731]
[1762797961565,0.96367951,3551.5,3551.4,0.4973]
[1762797962865,0.55817551,3551.5,3551.4,0.9704]
[1762797967097,0.55917551,3551.5,3551.4,0.9704]
[1762797970688,0.001,3551.9,3551.4,0.9704]
[1762797970992,0.001,3551.9,3551.8,0.4973]
[1762797971318,0.001,3551.9,3551.5,0.50125711]
[1762797971546,0.001,3551.9,3551.3,0.4731]
[1762797971899,0.001,3551.9,3551.8,0.4973]
[1762797972423,0.001,3551.9,3551.2,0.4731]
[1762797972718,0.001,3551.9,3551.8,0.4973]
[1762797973121,0.001,3551.9,3551.8,0.9704]
[1762797973490,0.001,3551.9,3551.8,0.4973]
[1762797974510,0.001,3551.9,3551.8,0.9704]
[1762797974718,0.001,3551.9,3551.8,0.4973]
[1762797977239,0.001,3551.9,3550.9,0.1826]
[1762797977537,0.001,3551.9,3551.1,0.4731]
[1762797977538,0.4695,3551.9,3551.1,0.4731]
[1762797978255,0.001,3551.9,3551.1,0.4731]
[1762797978809,0.1828,3551.9,3551.1,0.4731]
[1762797980239,0.6781,3551.9,3551.1,0.4731]
[1762797980421,0.6781,3551.9,3550.9,0.6557]
[1762797980910,0.6781,3551.9,3551.0,0.4731]
[1762797982220,0.4953,3551.8,3551.0,0.4731]
[1762797982547,0.4685,3551.1,3550.5,0.002]
[1762797982855,1.41419729,3551.5,3550.5,0.002]
[1762797983053,0.405504,3551.5,3550.5,0.002]
[1762797983217,0.405504,3551.3,3550.5,0.002]